bitfinex/quotes_ETHUSD_20250123
["timestamp","ask_amount","ask_price","bid_price","bid_amount"]
[1737661368060,3.88844,3224.7,3224.1,3.14395017]
[1737661370544,3.88844,3224.7,3224.1,3.14392017]
[1737661371885,3.88844,3224.7,3224.1,6.24548017]
[1737661372188,3.88844,3224.7,3224.1,3.14390017]
[1737661373549,3.10117,3224.6,3224.1,3.14390017]
[1737661373747,0.7873,3224.7,3224.1,3.76847019]
[1737661373983,0.7873,3224.7,3224.2,3.10147]
[1737661374475,0.7873,3224.7,3224.3,0.04205115]
[1737661374647,0.7873,3224.7,3224.2,3.10147]
[1737661374988,3.88973,3225.1,3224.3,3.14347115]
[1737661375194,3.88973,3225.1,3224.5,3.10119]
[1737661375349,3.88973,3225.1,3224.5,6.20238]
[1737661375549,3.88973,3225.1,3224.6,0.04164141]
[1737661375793,3.88973,3225.1,3224.6,3.14277141]
[1737661376306,3.71149671,3225.3,3224.6,3.14277141]
[1737661376463,3.71149671,3225.3,3224.7,3.10099]
[1737661376659,3.71149671,3225.3,3224.8,0.04166152]
[1737661376977,3.71149671,3225.3,3224.7,3.10099]
[1737661377176,3.71149671,3225.3,3224.9,0.04038371]
[1737661377376,3.10063,3225.2,3224.8,0.04043333]
[1737661377579,3.10063,3225.2,3225.0,0.0403341]
[1737661377778,3.10063,3225.2,3224.9,0.04038371]
[1737661377987,3.10063,3225.2,3225.1,0.04028449]
[1737661378189,3.10063,3225.2,3225.0,0.0403341]
[1737661378359,3.10063,3225.2,3225.1,0.04028449]
[1737661378805,3.10063,3225.2,3224.7,3.10099]
[1737661379002,3.10063,3225.2,3225.1,0.04028449]
[1737661379191,3.10063,3225.2,3224.7,3.10099]
[1737661379377,3.10063,3225.2,3225.1,0.04028449]
[1737661379581,3.10063,3225.2,3224.7,3.10099]
[1737661379798,3.10063,3225.2,3225.1,0.04028449]
[1737661380012,0.75673267,3225.2,3224.2,0.7953]
[1737661380310,3.10099,3224.8,3224.3,3.10139]
[1737661380671,3.89433,3225.2,3224.5,3.10118]
[1737661380870,3.10069,3225.1,3224.5,6.20236]
[1737661381314,3.10069,3225.1,3224.5,3.10118]
[1737661381571,3.89433,3225.2,3224.3,3.10139]
[1737661381773,3.1008,3225.0,3224.5,3.10124]
[1737661382830,3.1008,3225.0,3224.6,0.04007314]
[1737661383191,1.24423167,3225.2,3224.6,0.04007314]
[1737661383523,1.24423167,3225.2,3224.4,3.1013]
[1737661383524,3.10083,3225.0,3224.4,3.1013]
[1737661383726,3.10083,3225.0,3224.7,0.04000686]
[1737661383931,3.10089,3224.9,3224.4,3.1013]
[1737661384097,4.34482167,3225.2,3224.2,0.7953]
[1737661384291,3.10102,3224.8,3224.2,3.89677]
[1737661384719,3.10107,3224.7,3224.2,3.89677]
[1737661385699,3.10107,3224.7,3224.0,3.10173]
[1737661385700,3.89491,3224.6,3224.0,3.10173]
[1737661385906,3.10131,3224.5,3224.0,3.10173]
[1737661386730,3.89491,3224.6,3224.1,3.10161]
[1737661386937,3.89491,3224.6,3224.1,3.10157]
[1737661387229,0.7937,3224.6,3224.2,3.10153]
[1737661387430,3.89491,3224.6,3224.0,3.10173]
[1737661387736,3.89491,3224.6,3224.0,6.2034]
[1737661387921,3.89491,3224.6,3224.1,3.10162]
[1737661389918,3.10136,3224.4,3223.9,3.89768]
[1737661390230,3.10136,3224.4,3223.9,3.10178]
[1737661392860,3.10164,3224.1,3223.6,0.772]
[1737661393031,0.8322,3224.0,3223.3,3.10235]
[1737661393236,3.93398,3224.0,3223.4,3.10226]
[1737661393456,0.8322,3224.0,3223.4,0.04099485]
[1737661393662,0.8322,3224.0,3223.5,3.10221]
[1737661393860,3.93395,3224.0,3223.4,0.04099485]
[1737661394066,3.10199,3223.8,3223.6,0.04155782]
[1737661394373,3.10199,3223.8,3223.2,3.10247]
[1737661394933,3.10199,3223.8,3222.9,0.8157]
[1737661395283,3.10199,3223.8,3223.3,3.1024]
[1737661395428,0.61785974,3223.9,3222.9,0.8157]
[1737661395429,0.61785974,3223.9,3223.4,3.10222]
[1737661396834,0.8322,3224.0,3223.5,3.10213]
[1737661397030,3.10137,3224.4,3223.5,3.10213]
[1737661397031,3.0,3224.3,3223.6,3.10204]
[1737661397282,3.0,3224.3,3223.8,3.10187]
[1737661397283,3.795,3224.3,3223.8,3.10187]
[1737661397773,3.795,3224.3,3223.9,0.04169286]
[1737661397980,6.89646,3224.3,3223.9,0.04169286]
[1737661398140,7.896243,3224.3,3223.9,0.04169286]
[1737661398335,3.795,3224.3,3223.9,0.04169286]
[1737661398538,3.8962,3224.6,3224.0,3.10164]
[1737661398979,3.8962,3224.6,3224.1,3.14305273]
[1737661398980,3.0,3224.5,3224.1,3.14305273]
[1737661399138,0.795,3224.6,3224.1,3.14305273]
[1737661399338,0.795,3224.9,3224.4,3.10126]
[1737661399546,3.89589,3224.9,3224.3,3.10135]
[1737661399737,3.10103,3224.8,3224.5,0.0410542]
[1737661399937,3.490633,3224.8,3224.2,3.10149]
[1737661400154,3.10103,3224.8,3224.6,0.04100457]
[1737661400351,3.10103,3224.8,3224.2,3.10149]
[1737661400556,3.10103,3224.8,3224.7,0.04095496]
[1737661400793,0.795,3224.9,3223.8,0.784]
[1737661401002,3.10096,3224.8,3224.1,3.10162]
[1737661401292,3.10096,3224.8,3224.2,3.10153]
[1737661401695,3.89897656,3224.8,3224.0,6.20332]
[1737661401994,3.89897656,3224.8,3224.1,3.10157]
[1737661402201,6.202,3224.8,3224.1,3.10157]
[1737661402508,3.10121,3224.6,3224.0,3.10169]
[1737661402662,3.10121,3224.6,3224.0,6.20335]
[1737661402998,3.10108,3224.7,3224.2,3.10154]
[1737661404453,3.89595,3224.9,3224.2,6.203]
[1737661404658,3.10099,3224.8,3224.2,3.10146]
[1737661404854,0.795,3224.9,3224.4,3.10133]
[1737661405110,0.795,3224.9,3224.5,3.10124]
[1737661405597,0.795,3224.9,3224.4,3.10133]
[1737661405762,0.795,3224.9,3224.4,6.2026]
[1737661406507,0.795,3224.9,3224.4,6.20254]
[1737661406865,0.795,3224.9,3224.4,3.10127]
[1737661407387,0.3239092,3225.3,3224.4,3.10127]
[1737661407388,4.1570092,3225.3,3224.7,3.10102]
[1737661407585,1.1570092,3225.3,3224.6,3.10107]
[1737661407802,0.8331,3225.3,3224.8,3.10089]
[1737661407970,3.8331,3225.3,3224.8,3.10089]
[1737661408822,3.1004,3225.4,3224.9,3.10081]
[1737661409131,3.10051,3225.3,3224.7,3.10105]
[1737661409725,3.10051,3225.3,3224.6,3.10112]
[1737661409726,3.10063,3225.2,3224.6,3.10112]
[1737661410718,0.8217,3225.1,3224.6,3.10109]
[1737661412215,0.8217,3225.1,3224.7,3.10105]
[1737661412504,0.8217,3225.1,3224.6,3.10109]
[1737661412735,0.8217,3225.1,3224.6,6.20217]
[1737661413034,0.8217,3225.1,3224.7,0.04003663]
[1737661414138,0.8217,3225.1,3224.7,3.14107663]
[1737661414440,0.8217,3225.1,3224.8,35.0]
[1737661415044,0.8217,3225.1,3224.9,0.03993741]
[1737661415736,0.8217,3225.1,3225.0,0.03988781]
[1737661416097,0.8217,3225.1,3224.7,38.10104]
[1737661416291,0.8217,3225.1,3225.0,0.03988781]
[1737661416494,0.8217,3225.1,3224.7,38.10101]
[1737661416695,1.38371641,3225.5,3225.1,3.10067]
[1737661416894,4.18599736,3225.8,3225.3,3.10046]
[1737661417122,3.10011,3225.7,3225.2,0.03978861]
[1737661417328,3.86212,3225.8,3225.4,0.03946039]
[1737661417540,0.7621,3225.4,3224.7,38.10103]
[1737661417694,0.7621,3225.4,3224.7,35.0]
[1737661417899,3.10048,3225.3,3224.6,3.10114]
[1737661418311,3.10048,3225.3,3224.7,38.10105]
[1737661418540,3.10048,3225.3,3224.7,35.0]
[1737661418700,3.10068,3225.1,3224.7,35.0]
[1737661419625,6.20109,3225.3,3224.8,3.10095]
[1737661419829,0.7621,3225.4,3224.8,3.92185]
[1737661420153,3.10058,3225.2,3224.7,38.10105]
[1737661421139,3.10048,3225.3,3224.8,3.10095]
[1737661421703,3.10048,3225.3,3224.7,35.0]
[1737661421903,6.20103,3225.3,3224.7,41.20300562]
[1737661422231,3.10048,3225.3,3224.7,41.20300562]
[1737661423550,3.86257,3225.4,3224.8,3.10096]
[1737661423753,0.8239,3225.7,3225.2,3.10056]
[1737661424049,3.92384,3225.9,3225.4,3.88217]
[1737661424214,0.8239,3225.9,3225.4,4.270387]
[1737661424415,3.92389,3225.9,3225.4,3.488587]
[1737661425003,0.61267015,3226.1,3225.6,3.10018]
[1737661425203,0.61267015,3226.1,3225.7,0.7846]
[1737661425403,3.90253,3226.2,3225.7,0.7846]
[1737661425404,0.8029,3226.2,3225.7,3.88469]
[1737661425649,3.09957,3226.3,3225.8,3.09999]
[1737661425830,3.09957,3226.3,3225.9,35.0]
[1737661426486,3.91139,3226.7,3225.9,35.0]
[1737661426604,0.8122,3226.7,3225.9,35.0]
[1737661426948,0.8122,3226.7,3226.2,3.0996]
[1737661427451,6.91134,3226.7,3226.2,3.0996]
[1737661427796,6.91134,3226.7,3226.3,0.03904497]
[1737661428049,0.8122,3226.7,3226.2,0.619941]
[1737661428213,3.09915,3226.7,3226.4,0.03899541]
[1737661428419,3.70655628,3226.9,3226.3,3.90964497]
[1737661428634,3.70655628,3226.9,3226.5,0.03894585]
[1737661428830,0.60754628,3226.9,3226.4,0.03899541]
[1737661429031,3.09923,3226.7,3226.3,0.7711]
[1737661429202,3.09923,3226.7,3226.5,0.03894585]
[1737661429402,3.09923,3226.7,3226.3,0.7711]
[1737661429652,3.09923,3226.7,3226.6,0.03889629]
[1737661429855,3.09923,3226.7,3226.3,0.7711]
[1737661430019,3.09923,3226.7,3226.6,0.03889629]
[1737661430219,3.09923,3226.7,3226.0,6.1995]
[1737661430220,6.19846,3226.7,3226.0,3.91674]
[1737661430446,3.09923,3226.7,3226.6,0.03889629]
[1737661430780,6.19846,3226.7,3226.6,0.03889629]
[1737661430935,3.09923,3226.7,3226.1,3.0997]
[1737661431272,3.09928,3226.6,3226.1,3.0997]
[1737661431477,3.09928,3226.6,3226.0,0.817]
[1737661431781,3.09928,3226.6,3226.0,3.91902562]
[1737661433858,3.09933,3226.5,3226.0,3.91902562]
[1737661434759,3.09933,3226.5,3226.0,0.817]
[1737661434954,3.09923,3226.7,3226.0,0.817]
[1737661435161,3.09932,3226.6,3226.1,35.0]
[1737661435863,3.09933,3226.5,3226.1,35.0]
[1737661438972,3.09923,3226.7,3226.1,38.09969]
[1737661439173,3.09924,3226.6,3226.1,35.0]
[1737661439913,3.09923,3226.7,3226.1,38.09968]
[1737661440520,3.09923,3226.7,3226.2,3.0996]
[1737661440900,3.09928,3226.6,3226.1,3.09971]
[1737661441097,3.09958,3226.3,3226.1,35.0]
[1737661441300,3.09958,3226.3,3225.8,0.8289]
[1737661441776,3.91237,3226.5,3225.9,38.09982]
[1737661441976,3.91237,3226.5,3225.9,3.09982]
[1737661442304,0.619851,3226.6,3226.1,3.0997]
[1737661442622,3.09926,3226.6,3226.1,3.0997]
[1737661442920,3.09916,3226.7,3226.2,0.03834358]
[1737661443484,3.09916,3226.7,3226.3,35.0]
[1737661443685,3.09923,3226.6,3226.3,35.0]
[1737661443903,3.09933,3226.5,3226.4,0.03827776]
[1737661444294,3.0,3226.4,3225.9,6.19967]
[1737661444486,3.0,3226.4,3226.0,0.702857]
[1737661444820,3.0,3226.4,3226.2,0.7765]
[1737661445171,3.09916,3226.7,3226.2,0.7765]
[1737661445376,3.09925,3226.6,3226.2,0.7765]
[1737661445801,3.0,3226.5,3226.3,35.0]
[1737661446395,3.0,3226.6,3226.3,35.0]
[1737661446712,3.0,3226.6,3226.3,38.09952]
[1737661446903,3.0,3226.6,3226.3,38.99680893]
[1737661447506,3.0,3226.6,3226.4,3.09939]
[1737661447709,3.91489,3227.1,3226.5,3.09923]
[1737661448012,3.09871,3227.2,3226.6,3.09923]
[1737661448185,3.09871,3227.2,3226.7,0.7765]
[1737661448519,3.09858,3227.3,3226.7,6.97760562]
[1737661449326,6.91457,3227.4,3226.8,3.09903]
[1737661449735,6.91458,3227.4,3226.8,3.09903]
[1737661450440,0.63004425,3227.5,3227.0,3.09878]
[1737661450732,3.0,3227.5,3227.0,3.09884]
[1737661450938,3.09835,3227.6,3227.1,0.309884]
[1737661451293,3.09835,3227.6,3227.2,0.7609]
[1737661451626,3.09819,3227.7,3227.2,3.85955]
[1737661451830,3.91282,3227.8,3227.3,35.0]
[1737661452031,3.09812,3227.8,3227.3,38.09854]
[1737661452201,3.09812,3227.8,3227.3,41.20056562]
[1737661452402,3.09801,3227.9,3227.3,41.20056562]
[1737661453222,3.0,3227.8,3227.3,44.29905562]
[1737661453419,3.0,3227.9,3227.4,3.09841]
[1737661453640,3.0,3227.9,3227.3,3.10202562]
[1737661453809,3.09815,3227.8,3227.3,3.09854]
[1737661454013,3.09815,3227.8,3227.4,35.0]
[1737661454648,3.7942,3227.9,3226.8,4.44465]
[1737661454799,3.09845,3227.5,3226.9,3.09894]
[1737661454996,0.7942,3227.6,3226.8,35.7957]
[1737661455201,3.0989,3227.0,3226.6,0.7957]
[1737661455400,3.09872,3227.2,3226.6,3.89488]
[1737661455602,3.09886,3227.0,3226.7,35.0]
[1737661456854,3.09872,3227.2,3226.7,38.09908]
[1737661457730,3.09876,3227.1,3226.7,35.0]
[1737661458056,0.619748,3227.1,3226.8,0.03745847]
[1737661458242,3.0,3227.2,3226.8,0.03745847]
[1737661458422,3.09872,3227.2,3226.8,0.03745847]
[1737661458620,0.8138,3227.7,3227.3,3.09855]
[1737661458940,3.0,3227.7,3227.2,3.09856]
[1737661459267,3.09801,3227.9,3227.3,0.03755444]
[1737661459468,3.09809,3227.8,3227.4,35.0]
[1737661459771,6.0982,3227.7,3227.4,35.03735237]
[1737661460975,3.0983,3227.6,3227.4,35.03735237]
[1737661461265,6.91217,3227.5,3227.4,0.03735237]
[1737661461419,3.8138,3227.5,3226.6,3.85247]
[1737661461619,3.09875,3227.2,3226.7,35.0]
[1737661462315,3.09881,3227.1,3226.7,35.0]
[1737661462644,3.09895,3226.9,3226.7,35.0]
[1737661462985,3.09904,3226.8,3226.7,35.0]
[1737661463163,6.09904,3226.8,3226.7,35.0]
[1737661464376,3.0995,3226.4,3226.1,0.7689]
[1737661464969,3.0995,3226.4,3226.2,35.0]
[1737661465168,3.0995,3226.4,3226.2,38.10202562]
[1737661468576,0.8072,3227.2,3226.5,3.0993]
[1737661468766,3.09883,3227.1,3226.6,0.7776]
[1737661469095,3.09876,3227.1,3226.6,3.8768]
[1737661469264,3.09876,3227.1,3226.6,0.7776]
[1737661469467,3.09876,3227.1,3226.7,0.38769]
[1737661470300,6.19761,3227.1,3226.7,0.38769]
[1737661470593,3.09876,3227.1,3226.7,0.38769]
[1737661471087,6.19759,3227.1,3226.7,0.38769]
[1737661471292,3.09876,3227.1,3226.7,0.38769]
[1737661471652,3.09886,3227.0,3226.7,0.38769]
[1737661472905,3.09886,3227.0,3226.8,0.03783825]
[1737661473064,6.85691,3226.9,3226.8,0.03783825]
[1737661473250,3.09958,3226.3,3226.0,0.8301]
[1737661473480,3.09958,3226.3,3226.1,0.03683981]
[1737661475101,3.09934,3226.5,3226.1,0.03683981]
[1737661475483,3.0,3226.6,3226.1,0.43352079]
[1737661475812,6.19803,3226.9,3226.3,3.86781]
[1737661475948,3.0,3226.8,3226.4,3.09933]
[1737661476296,3.0988,3227.1,3226.4,3.13605845]
[1737661476499,3.70884987,3227.3,3226.7,3.09913]
[1737661476796,3.09871,3227.2,3226.7,3.09913]
[1737661476978,3.70884987,3227.3,3226.8,0.03660907]
[1737661477167,0.61023987,3227.3,3226.8,0.35018298]
[1737661477364,3.89261,3227.5,3226.8,0.35018298]
[1737661477564,3.09826,3227.7,3227.1,3.09873]
[1737661477781,0.61749208,3227.5,3227.1,3.09868]
[1737661477980,0.61749208,3227.5,3227.2,0.03628202]
[1737661478390,3.09802,3227.9,3227.4,0.7778]
[1737661478703,3.09802,3227.9,3227.5,0.03603782]
[1737661480469,3.0,3228.0,3227.6,3.09826]
[1737661480653,3.0976,3228.3,3227.8,3.09808]
[1737661480854,3.0,3228.2,3227.9,0.0355293]
[1737661481270,3.0,3228.2,3227.6,6.19646]
[1737661481469,3.0,3228.2,3227.7,0.03562836]
[1737661481695,3.0,3228.2,3227.7,0.69795997]
[1737661481864,3.0,3228.2,3227.7,3.79610997]
[1737661485763,3.0,3228.2,3227.7,0.69795997]
[1737661485964,6.09771,3228.2,3227.7,0.03562836]
[1737661486408,6.09771,3228.2,3227.7,3.13379836]
[1737661489827,3.09791,3228.0,3227.7,0.03562836]
[1737661490041,3.09808,3227.8,3227.7,0.03562836]
[1737661490183,3.09808,3227.8,3227.7,0.03540343]
[1737661490384,3.09829,3227.6,3227.2,0.8239]
[1737661490578,3.09829,3227.6,3227.3,0.03560162]
[1737661490784,3.09838,3227.5,3227.2,0.8239]
[1737661491030,3.09838,3227.5,3227.3,0.03567637]
[1737661491207,3.09838,3227.5,3226.9,0.8239]
[1737661491208,3.09846,3227.4,3226.9,0.8239]
[1737661491416,3.09846,3227.4,3227.0,0.03582505]
[1737661491782,3.0,3227.5,3227.2,3.09862]
[1737661492084,3.0,3227.5,3227.0,0.43169356]
[1737661492085,3.0,3227.6,3227.3,0.85925359]
[1737661492831,3.09827,3227.7,3227.3,0.85925359]
[1737661492832,6.09808,3227.9,3227.3,3.95779359]
[1737661493725,6.09819,3227.7,3227.3,0.85925359]
[1737661495227,3.09828,3227.6,3227.3,0.85925359]
[1737661498029,3.09839,3227.5,3227.3,0.85925359]
[1737661499734,3.09846,3227.4,3227.3,0.03535359]
[1737661500089,3.09846,3227.4,3227.0,0.7889]
[1737661500438,3.09866,3227.2,3227.1,0.03547982]
[1737661500729,0.7692,3227.7,3226.8,0.7964]
[1737661500730,3.09855,3227.4,3226.9,0.55]
[1737661500936,3.09855,3227.4,3227.1,0.03547982]
[1737661501129,3.09855,3227.4,3227.0,0.03552936]
[1737661501335,3.09855,3227.4,3227.2,0.03543028]
[1737661501541,3.09855,3227.4,3227.1,0.03547982]
[1737661501724,3.09855,3227.4,3227.3,0.03538905]
[1737661501921,3.09855,3227.4,3227.2,0.03543859]
[1737661502126,3.09855,3227.4,3227.3,0.03538905]
[1737661502642,3.09855,3227.4,3226.9,4.093415]
[1737661502841,3.09855,3227.4,3227.3,0.03538905]
[1737661503215,3.09855,3227.4,3227.0,0.4889815]
[1737661503435,3.09855,3227.4,3227.1,0.03548813]
[1737661504640,6.19708,3227.4,3227.1,0.03548813]
[1737661504814,3.09853,3227.4,3227.1,0.03548813]
[1737661505011,6.19709,3227.4,3227.1,0.03548813]
[1737661505218,0.7692,3227.7,3227.1,0.03548813]
[1737661505219,3.09861,3227.3,3227.1,0.03548813]
[1737661505550,6.19725,3227.3,3226.8,0.7964]
[1737661505698,3.09861,3227.3,3227.2,0.03543859]
[1737661505899,3.09861,3227.3,3226.8,1.185949]
[1737661506124,0.7692,3227.7,3226.9,0.03558722]
[1737661506343,3.09861,3227.3,3226.9,0.03558722]
[1737661506712,3.09843,3227.5,3227.0,0.55]
[1737661506920,3.09843,3227.5,3227.1,0.8117]
[1737661507450,3.09852,3227.4,3227.1,0.8117]
[1737661507653,3.09852,3227.4,3227.2,0.03543028]
[1737661508234,3.09846,3227.4,3227.2,0.03543028]
[1737661508441,3.09846,3227.4,3226.9,0.7951]
[1737661508700,3.92963,3227.5,3226.5,0.45]
[1737661508701,3.09921,3226.7,3226.5,0.7917]
[1737661508899,3.09939,3226.5,3226.1,0.7917]
[1737661509338,3.09948,3226.4,3226.1,0.7917]
[1737661509955,3.09953,3226.3,3226.1,0.7917]
[1737661510096,3.09944,3226.4,3226.1,0.7917]
[1737661510949,3.09944,3226.4,3225.8,3.09994]
[1737661510950,3.09969,3226.2,3225.6,3.93256]
[1737661511103,3.09984,3226.0,3225.6,0.8324]
[1737661511308,3.10007,3225.8,3225.3,3.23051947]
[1737661511535,3.10039,3225.4,3225.3,3.23051947]
[1737661511744,0.8267,3225.8,3224.6,3.10112]
[1737661511745,3.10063,3225.2,3224.7,0.61999411]
[1737661512047,0.60797223,3226.1,3225.6,3.90869]
[1737661512346,6.09977,3226.1,3225.6,1.199369]
[1737661512505,3.0,3226.2,3225.7,3.10002]
[1737661512696,3.0,3226.2,3225.6,4.299469]
[1737661513104,3.0,3226.2,3225.7,3.10007]
[1737661513542,3.0,3226.2,3225.7,0.28924534]
[1737661513839,3.09973,3226.1,3225.7,0.28924534]
[1737661514145,0.60580334,3226.6,3225.7,0.28924534]
[1737661514305,3.09956,3226.3,3225.7,0.28924534]
[1737661514503,6.09967,3226.2,3225.7,0.28924534]
[1737661514706,3.0,3226.0,3225.7,0.28924534]
[1737661514916,3.09999,3225.9,3225.7,0.28924534]
[1737661515116,3.09999,3225.9,3225.8,0.03626805]
[1737661515409,6.09982,3226.0,3225.8,0.28924534]
[1737661515606,3.0,3226.0,3225.8,0.28924534]
[1737661515902,3.0,3226.0,3225.9,0.03593348]
[1737661516244,6.09981,3226.0,3225.9,0.03593348]
[1737661516404,7.019771,3226.0,3225.9,0.03593348]
[1737661516602,7.019771,3226.0,3225.8,0.28924534]
[1737661516823,3.09991,3225.9,3225.8,0.28924534]
[1737661517711,3.09991,3225.9,3225.5,0.28924534]
[1737661517712,3.10007,3225.8,3225.5,0.28924534]
[1737661518052,3.09991,3225.9,3225.6,0.03614046]
[1737661518347,3.919961,3226.0,3225.6,0.03614046]
[1737661518348,3.0,3226.0,3225.6,0.03614046]
[1737661518751,3.0,3226.0,3225.6,3.13628046]
[1737661519042,6.09962,3226.2,3225.6,3.13628046]
[1737661519747,3.0,3226.0,3225.7,0.28924534]
[1737661520136,3.0,3226.0,3225.8,0.03604127]
[1737661520509,3.0,3226.0,3225.7,0.28924534]
[1737661520822,6.09984,3226.0,3225.8,0.0366189]
[1737661521021,7.019802,3226.0,3225.7,0.28924534]
[1737661521353,7.019802,3226.0,3225.8,0.0366189]
[1737661521853,7.019802,3226.0,3225.9,0.03655336]
[1737661522056,7.019802,3226.0,3225.6,0.28924534]
[1737661522410,7.019802,3226.0,3225.7,0.03678996]
[1737661522807,0.832,3226.4,3225.8,3.09995]
[1737661523052,3.09949,3226.4,3225.9,0.03692223]
[1737661523253,3.0,3226.1,3225.9,0.03692223]
[1737661523555,3.09949,3226.4,3226.0,0.03672433]
[1737661523754,3.0,3226.3,3226.0,0.03672433]
[1737661524112,3.609949,3226.3,3225.7,0.28924534]
[1737661524313,3.09994,3225.9,3225.8,0.03682351]
[1737661524508,3.09994,3225.9,3225.7,0.28924534]
[1737661524746,3.09984,3226.0,3225.8,0.03693097]
[1737661525140,3.09984,3226.0,3225.7,0.28924534]
[1737661525344,3.09984,3226.0,3225.5,0.28924534]
[1737661526026,3.09984,3226.0,3225.6,0.03707417]
[1737661527346,3.09984,3226.0,3225.7,0.28924534]
[1737661527754,3.09984,3226.0,3225.8,0.03673137]
[1737661528143,3.09984,3226.0,3225.7,0.28924534]
[1737661528348,3.09984,3226.0,3225.9,0.03668178]
[1737661528656,3.09984,3226.0,3225.9,0.0369132]
[1737661528857,3.09984,3226.0,3225.7,0.28924534]
[1737661529159,3.09984,3226.0,3225.8,0.03673137]
[1737661529466,3.09984,3226.0,3225.8,0.28924534]
[1737661529667,3.09984,3226.0,3225.9,0.0368018]
[1737661531347,3.09984,3226.0,3225.9,0.32604714]
[1737661535828,3.7998,3226.1,3225.9,0.32604714]
[1737661536232,6.89953,3226.1,3225.9,0.32604714]
[1737661536481,6.89953,3226.1,3226.0,35.0]
[1737661536662,6.89953,3226.1,3226.0,0.03649194]
[1737661536859,6.89953,3226.1,3226.0,0.32573728]
[1737661537060,0.7998,3226.1,3226.0,0.32573728]
[1737661537448,6.71391163,3226.2,3226.0,0.32573728]
[1737661538134,3.0,3226.3,3226.0,0.32573728]
[1737661538547,3.0,3226.3,3226.0,0.03649194]
[1737661538871,3.0,3226.3,3226.1,35.0]
[1737661539169,6.09952,3226.3,3226.2,0.03643435]
[1737661539497,3.0,3226.3,3226.2,0.03643435]
[1737661539910,6.09952,3226.3,3226.2,0.03643435]
[1737661540205,10.85307474,3226.3,3226.2,0.03643435]
[1737661540710,6.10054,3225.3,3224.9,0.8118]
[1737661540865,3.0,3225.3,3225.0,0.03600857]
[1737661541065,6.10049,3225.3,3225.1,35.0]
[1737661541266,6.10049,3225.3,3225.2,0.03577691]
[1737661541706,3.0,3225.4,3225.2,0.03577691]
[1737661541879,3.10006,3225.8,3225.2,3.13780253]
[1737661542291,3.0,3225.6,3225.2,3.13634691]
[1737661542490,3.0,3225.7,3225.2,3.13634691]
[1737661542692,3.0,3225.7,3225.2,3.42654455]
[1737661542911,3.0,3225.7,3225.3,3.10041]
[1737661543067,3.1001,3225.7,3225.4,0.03598096]
[1737661543403,0.7683,3225.6,3225.2,0.29019764]
[1737661543565,3.86849,3225.6,3225.5,0.03578178]
[1737661543764,6.10048,3225.3,3225.2,0.29019764]
[1737661544191,6.86028,3225.3,3225.2,0.29019764]
[1737661544805,3.10096,3224.9,3224.5,35.0]
[1737661545008,3.10098,3224.8,3224.5,35.0]
[1737661545605,3.10096,3224.9,3224.5,35.0]
[1737661545808,3.10104,3224.8,3224.5,35.0]
[1737661545977,3.10096,3224.9,3224.5,35.0]
[1737661546508,3.10097,3224.8,3224.5,35.0]
[1737661546701,3.10097,3224.8,3224.6,0.28993942]
[1737661547279,6.10083,3225.0,3224.7,35.0]
[1737661547722,6.10083,3225.0,3224.8,0.03654886]
[1737661548023,3.10087,3224.9,3224.7,35.0]
[1737661548236,3.10087,3224.9,3224.8,0.28993942]
[1737661548822,0.7598,3225.3,3224.9,3.10086]
[1737661548995,3.0,3225.4,3224.8,3.39082942]
[1737661549399,3.1005,3225.3,3224.8,3.39082942]
[1737661549931,3.10013,3225.7,3225.0,3.10071]
[1737661550102,3.1003,3225.5,3224.9,0.7848]
[1737661550436,6.10051,3225.3,3224.9,0.7848]
[1737661550755,3.0,3225.4,3224.9,3.88566]
[1737661550885,6.10042,3225.4,3224.9,3.88682562]
[1737661551402,3.0,3225.4,3224.9,3.88682562]
[1737661551592,6.10039,3225.4,3224.9,3.88682562]
[1737661551791,3.0,3225.4,3224.9,6.98767562]
[1737661552343,6.10042,3225.4,3224.9,3.88682562]
[1737661552640,3.0,3225.4,3224.9,3.88682562]
[1737661552834,3.10049,3225.3,3224.9,0.7848]
[1737661553140,3.71706584,3225.9,3224.9,0.7848]
[1737661553141,3.09984,3226.0,3225.4,3.10037]
[1737661553349,0.815,3226.2,3225.6,3.10012]
[1737661553495,3.09936,3226.5,3225.4,0.8178]
[1737661553496,3.09991,3225.9,3225.4,0.8178]
[1737661553695,0.63392444,3226.4,3225.4,0.8178]
[1737661553696,3.09989,3226.0,3225.4,0.8178]
[1737661553897,3.0,3225.9,3225.7,35.0]
[1737661554103,6.1,3225.8,3225.7,35.0]
[1737661554342,6.1,3225.8,3225.2,3.88947]
[1737661554343,3.10035,3225.5,3224.9,3.10084]
[1737661554529,3.1001,3225.7,3225.0,0.310084]
[1737661554731,3.1001,3225.7,3225.1,3.1006]
[1737661555048,3.1001,3225.7,3225.2,3.10057]
[1737661555245,6.10001,3225.8,3225.2,3.10057]
[1737661555575,3.10019,3225.6,3224.9,3.8897]
[1737661555848,3.10019,3225.6,3225.0,35.0]
[1737661556007,3.10034,3225.5,3225.0,35.0]
[1737661556530,3.10019,3225.6,3225.0,35.0]
[1737661556934,3.10019,3225.6,3225.1,3.10066]
[1737661557330,3.0,3225.7,3225.1,3.10066]
[1737661557547,3.0,3225.7,3225.2,38.10055]
[1737661557747,6.10006,3225.8,3225.2,35.0]
[1737661558115,6.10006,3225.8,3225.2,38.10051]
[1737661558462,3.0,3225.8,3225.3,3.10042]
[1737661558760,3.09985,3226.0,3225.4,3.88928]
[1737661559134,3.10006,3225.8,3225.5,35.0]
[1737661559558,6.09994,3225.9,3225.5,35.0]
[1737661560219,3.1,3225.8,3225.5,35.0]